fUSD/lending_fUSD_20251017
["ID","MTS","AMOUNT","RATE_DAILY","PERIOD"]
[391702169,1760733073103,-1988.0,0.00045753,2]
[391702170,1760733073240,-500.0,0.00045753,2]
[391702171,1760733073253,-1664.0,0.00045753,2]
[391702172,1760733073263,-489.0,0.00045753,2]
[391702173,1760733073273,-873.0,0.00045753,2]
[391702174,1760733073283,-522.0,0.00045753,2]
[391702175,1760733073292,-463.6994922,0.00045753,2]
[391702176,1760733073301,-500.0,0.00045753,2]
[391702177,1760733073311,-500.0,0.00045753,120]
[391702178,1760733073320,-500.0,0.00045753,120]
[391702179,1760733073329,-538.26,0.00045753,120]
[391702180,1760733073339,-500.0,0.00045753,120]
[391702181,1760733073348,-500.0,0.00045753,120]
[391702182,1760733073358,-500.0,0.00045753,120]
[391702183,1760733073369,-500.0,0.00045753,120]
[391702184,1760733073379,-500.0,0.00045753,120]
[391702185,1760733073389,-500.0,0.00045753,120]
[391702186,1760733073398,-500.0,0.00045753,120]
[391702187,1760733073408,-2100.1,0.00045753,120]
[391702188,1760733073418,-711.03,0.00045753,120]
[391702189,1760733073428,-500.0,0.00045753,120]
[391702190,1760733073437,-500.0,0.00045753,120]
[391702191,1760733073447,-500.0,0.00045753,120]
[391702192,1760733073456,-500.0,0.00045753,120]
[391702193,1760733073465,-500.0,0.00045753,120]
[391702194,1760733073475,-700.0,0.00045753,60]
[391702195,1760733073485,-168.0,0.00045755,120]
[391702196,1760733073494,-5888.0,0.00045756,7]
[391702197,1760733073504,-150.0,0.00045759,30]
[391702198,1760733073514,-150.0,0.00045778,30]
[391702199,1760733073523,-546.25,0.0004578,30]
[391702200,1760733073534,-150.0,0.00045791,30]
[391702201,1760733073547,-901.0,0.000458,30]
[391702202,1760733073557,-400.0,0.000458,16]
[391702203,1760733073566,-958.0,0.000458,30]
[391702204,1760733073575,-775.0,0.00045808,2]
[391702205,1760733073585,-500.0,0.00045808,2]
[391702206,1760733073594,-548.0,0.00045808,2]
[391702207,1760733073604,-152.53651065,0.00045808,2]
[391702208,1760733073613,-1988.0,0.00045808,2]
[391702209,1760733073623,-500.0,0.00045808,2]
[391702210,1760733073633,-1664.0,0.00045808,2]
[391702211,1760733073642,-489.0,0.00045808,2]
[391702212,1760733073652,-873.0,0.00045808,2]
[391702213,1760733073661,-522.0,0.00045808,2]
[391702214,1760733073670,-500.0,0.00045808,2]
[391702215,1760733073680,-150.0,0.00045829,30]
[391702216,1760733073690,-2419.72033,0.0004585,30]
[391702217,1760733073699,-225.68960895,0.00045858,21]
[391702218,1760733073709,-2000.0,0.00045862,120]
[391702219,1760733073719,-345.774389,0.00045862,120]
[391702220,1760733073728,-200.0,0.00045862,120]
[391702221,1760733073737,-775.0,0.00045863,2]
[391702222,1760733073747,-500.0,0.00045863,2]
[391702223,1760733073756,-548.0,0.00045863,2]
[391702224,1760733073766,-1988.0,0.00045863,2]
[391702225,1760733073775,-500.0,0.00045863,2]
[391702226,1760733073784,-1664.0,0.00045863,2]
[391702227,1760733073794,-489.0,0.00045863,2]
[391702228,1760733073803,-873.0,0.00045863,2]
[391702229,1760733073813,-522.0,0.00045863,2]
[391702230,1760733073822,-500.0,0.00045863,2]
[391702231,1760733073832,-150.0,0.00045873,30]
[391702232,1760733073842,-150.0,0.00045879,30]
[391702233,1760733073852,-200.0,0.00045898,7]
[391702234,1760733073861,-200.0,0.00045898,7]
[391702235,1760733073873,-200.0,0.00045898,7]
[391702236,1760733073882,-200.0,0.00045898,7]
[391702237,1760733073892,-106479.43652043,0.000459,120]
[391702238,1760733073902,-400.0,0.000459,16]
[391702239,1760733073911,-154.0,0.000459,120]
[391702240,1760733073921,-150.0,0.00045912,30]
[391702241,1760733073930,-775.0,0.00045917,2]
[391702242,1760733073941,-500.0,0.00045917,2]
[391702243,1760733073951,-548.0,0.00045917,2]
[391702244,1760733073960,-1988.0,0.00045917,2]
[391702245,1760733073970,-500.0,0.00045917,2]
[391702246,1760733073979,-1664.0,0.00045917,2]
[391702247,1760733073989,-489.0,0.00045917,2]
[391702248,1760733073998,-873.0,0.00045917,2]
[391702249,1760733074007,-522.0,0.00045917,2]
[391702250,1760733074016,-500.0,0.00045917,2]
[391702251,1760733074026,-150.0,0.00045935,30]
[391702252,1760733074036,-5888.0,0.00045946,2]
[391702253,1760733074046,-727.29624766,0.00045954,120]
[391702254,1760733074056,-168.0,0.00045964,2]
[391702255,1760733074066,-150.0,0.00045967,30]
[391702256,1760733074075,-500.0,0.00045967,120]
[391702257,1760733074085,-500.0,0.00045967,120]
[391702258,1760733074095,-400.0,0.0004597,3]
[391702259,1760733074105,-300.40373765,0.0004597,3]
[391702260,1760733074116,-775.0,0.00045972,2]
[391702261,1760733074126,-569.47179201,0.00045972,2]
[391702262,1760733074136,-548.0,0.00045972,2]
[391702263,1760733074146,-1988.0,0.00045972,2]
[391702264,1760733074156,-500.0,0.00045972,2]
[391702265,1760733074166,-1664.0,0.00045972,2]
[391702266,1760733074177,-489.0,0.00045972,2]
[391702267,1760733074187,-873.0,0.00045972,2]
[391702268,1760733074197,-522.0,0.00045972,2]
[391702269,1760733074206,-249.16859255,0.00045972,2]
[391702270,1760733074216,-1000.0,0.00045999,120]
[391702271,1760733074225,-10656.5,0.00045999,2]
[391702272,1760733074234,-68286.63585798,0.00046,120]
[391702273,1760733074400,-9714.30369706,0.00046,120]
[391702274,1760733074423,-6686.61659886,0.00046,120]
[391702275,1760733074434,-3928.03991876,0.00046,120]
[391702276,1760733074846,-281.3727204,0.00014999,2]
[391702277,1760733074865,-218.6272796,0.00014999,2]
[391702278,1760733074875,-500.0,0.00014999,2]
[391702279,1760733074884,-225.0847204,0.00014999,2]
[391702280,1760733075179,-274.9152796,0.00014999,2]
[391702281,1760733075189,-500.0,0.00014999,2]
[391702282,1760733075199,-192.86642039,0.00014999,2]
[391702283,1760733075210,-307.13357961,0.00014999,2]
[391702284,1760733075220,-500.0,0.00014999,2]
[391702285,1760733075229,-500.0,0.00014999,2]
[391702286,1760733075239,-546.671033,0.000249,7]
[391702287,1760733075248,-300.751597,0.000249,7]
[391702288,1760733075258,-151.0,0.000249,7]
[391702289,1760733075267,-546.671033,0.000249,7]
[391702290,1760733075276,-546.671033,0.000249,7]
[391702291,1760733075285,-695.27,0.00037655,2]
[391702292,1760733075294,-546.671033,0.00039444,30]
[391702293,1760733075303,-300.751597,0.00039444,120]
[391702294,1760733075313,-151.0,0.00039444,120]
[391702295,1760733075322,-546.671033,0.00039444,30]
[391702296,1760733075331,-546.671033,0.00039444,30]
[391702297,1760733075375,-6445.0,0.00039641,2]
[391702298,1760733075386,-300.751597,0.00042,120]
[391702299,1760733075395,-546.671033,0.00042,30]
[391702300,1760733075404,-300.751597,0.00042,120]
[391702301,1760733075413,-249.844715,0.00042,120]
[391702302,1760733075422,-546.671033,0.00042,30]
[391702303,1760733075431,-546.671033,0.00042,30]
[391702304,1760733075441,-6445.0,0.00042641,2]
[391702305,1760733075449,-459.70943458,0.00043344,11]
[391702306,1760733075460,-500.0,0.00043835,120]
[391702307,1760733075469,-500.0,0.00043835,120]
[391702308,1760733075484,-500.0,0.00043835,120]
[391702309,1760733075493,-500.0,0.00043835,120]
[391702310,1760733075503,-500.0,0.00044109,120]
[391702311,1760733075512,-500.0,0.00044383,120]
[391702312,1760733075521,-500.0,0.00044657,120]
[391702313,1760733075530,-500.0,0.00044931,120]
[391702314,1760733075542,-700.0,0.0004499,120]
[391702315,1760733075553,-151.0,0.00044998,120]
[391702316,1760733075563,-300.751597,0.00044998,120]
[391702317,1760733075572,-546.671033,0.00044998,30]
[391702318,1760733075582,-300.751597,0.00044998,120]
[391702319,1760733075593,-546.671033,0.00044998,30]
[391702320,1760733075602,-546.671033,0.00044998,30]
[391702321,1760733075611,-220.40682781,0.0004515,2]
[391702322,1760733075622,-500.0,0.00045205,120]
[391702323,1760733075632,-463.94482134,0.00045443,30]
[391702324,1760733075643,-250.0,0.00045443,30]
[391702325,1760733075652,-250.0,0.00045443,30]
[391702326,1760733075662,-546.671033,0.00045443,30]
[391702327,1760733075671,-250.0,0.00045443,30]
[391702328,1760733075681,-151.0,0.00045443,120]
[391702329,1760733075690,-1000.0,0.00045443,30]
[391702330,1760733075700,-250.0,0.00045443,30]
[391702331,1760733075709,-481.11077973,0.00045443,30]
[391702332,1760733075718,-250.0,0.00045443,30]
[391702333,1760733075727,-100.28121389,0.00045443,30]
[391702334,1760733075739,-264.57538388,0.00045443,30]
[391702335,1760733075750,-2635.14340223,0.00045443,30]
[391702336,1760733075759,-300.751597,0.00045443,120]
[391702337,1760733075768,-250.0,0.00045443,30]
[391702338,1760733075777,-838.01906005,0.00045443,30]
[391702430,1760734120336,878.4,0.00025587,120]
[391702454,1760734232275,-156.25,0.00014922,2]
[391702455,1760734232285,-257.5580266,0.00014997,2]
[391702456,1760734232298,-942.4419734,0.00014997,2]
[391702457,1760734232313,-300.0,0.00014998,2]
[391702458,1760734232322,-7.5580266,0.00014999,2]
[391702459,1760734232334,-492.4419734,0.00014999,2]
[391702460,1760734232351,-257.5580266,0.00014999,2]
[391702461,1760734232385,-242.4419734,0.00014999,2]
[391702462,1760734232394,-500.0,0.00014999,2]
[391702463,1760734232404,-500.0,0.00014999,2]
[391702464,1760734232414,-500.0,0.00014999,2]
[391702465,1760734232423,-500.0,0.00014999,2]
[391702466,1760734232432,-212.98,0.00014999,2]
[391702467,1760734232440,-160.0,0.00015,2]
[391702468,1760734232451,-475.6557911,0.00019883,2]
[391702469,1760734232460,-150.0,0.00019887,2]
[391702470,1760734232470,-1799.77,0.00019888,2]
[391702471,1760734232479,-89.67223552,0.00019888,2]
[391702472,1760734232491,-61.32776448,0.00019888,2]
[391702473,1760734232500,-151.0,0.00019888,2]
[391702474,1760734232509,-151.0,0.00019888,2]
[391702475,1760734232518,-151.0,0.00019888,2]
[391702476,1760734232528,-151.0,0.00019888,2]
[391702477,1760734232537,-348.06738065,0.000199,2]
[391702478,1760734232548,-327.7799999,0.000199,2]
[391702480,1760734232559,-781.96064254,0.000199,2]
[391702557,1760734238198,-151.0,0.00019888,2]
[391702559,1760734238208,-151.0,0.00019888,2]
[391702561,1760734238218,-151.0,0.00019888,2]
[391702563,1760734238228,-151.0,0.00019888,2]
[391702565,1760734238237,-151.0,0.00019888,2]
[391702567,1760734238247,-151.0,0.00019888,2]
[391702569,1760734238256,-151.0,0.00019888,2]
[391702571,1760734238265,-151.0,0.00019888,2]
[391702573,1760734238275,-8596.46163336,0.000199,2]
[391702575,1760734238284,-163.51521853,0.000199,2]
[391702577,1760734238295,-288.42617775,0.000199,2]
[391702579,1760734238305,-204.22491194,0.000199,2]
[391702581,1760734238314,-242.51792924,0.000199,2]
[391702583,1760734238324,-435.14802967,0.000201,2]
[391702585,1760734238343,-9619.12162678,0.000201,2]
[391702586,1760734238353,-1799.77,0.00020162,2]
[391702587,1760734238366,-10054.26965645,0.000203,2]
[391702588,1760734238375,-500.0,0.00020362,2]
[391702589,1760734238384,-500.0,0.00020362,2]
[391702590,1760734238396,-461.00697767,0.00020385,2]
[391702591,1760734238409,-500.0,0.00020385,2]
[391702592,1760734238419,-1799.77,0.00020436,2]
[391702593,1760734238429,-10054.26965645,0.000205,2]
[391702594,1760734238438,-6533.16008609,0.000207,2]
[391702811,1760734240560,-151.0,0.00019888,2]
[391702813,1760734240569,-3521.10957036,0.000207,2]
[391702815,1760734240578,-1799.77,0.0002071,2]
[391702816,1760734240587,-10054.26965645,0.000209,2]
[391702817,1760734240596,-1000.0,0.0002091,2]
[391702818,1760734240605,-1000.0,0.0002091,2]
[391702819,1760734240613,-500.0,0.00020983,2]
[391702820,1760734240622,-1799.77,0.00020984,2]
[391702828,1760734240790,-10054.26965645,0.000211,2]
[391702830,1760734240800,-1799.77,0.00021258,2]
[391702832,1760734240810,-10054.26965645,0.000213,2]
[391702834,1760734240820,-514.22318804,0.00021458,2]
[391702836,1760734240830,-1500.0,0.00021458,2]
[391702838,1760734240839,-10054.26965645,0.000215,2]
[391702840,1760734240848,-1000.0,0.00021531,2]
[391702842,1760734240857,-1799.77,0.00021532,2]
[391702844,1760734240866,-10054.26965645,0.000217,2]
[391702846,1760734240875,-1799.77,0.00021806,2]
[391702848,1760734240884,-10054.26965645,0.000219,2]
[391702850,1760734240894,-10000.0,0.00021917,2]
[391702852,1760734240903,-2000.0,0.00022006,2]
[391702854,1760734240912,-1000.0,0.00022079,2]
[391702856,1760734240923,-1799.77,0.0002208,2]
[391702858,1760734240932,-451.14238015,0.000221,2]
[391702860,1760734240941,-10054.26965645,0.000222,2]
[391702862,1760734240950,-1500.0,0.00022331,2]
[391702864,1760734240959,-251.0,0.00022348,2]
[391702866,1760734240969,-1799.77,0.00022354,2]
[391702868,1760734240981,-10054.26965645,0.000224,2]
[391702870,1760734240990,-265.19839004,0.00022554,2]
[391702872,1760734240999,-301.0,0.00022559,2]
[391702874,1760734241008,-1799.77,0.00022628,2]
[391702876,1760734241018,-1000.0,0.00022646,2]
[391702878,1760734241027,-162.0,0.0002274,2]
[391702880,1760734241036,-878.4,0.00022744,2]
[391702882,1760734241047,-356.0,0.00022795,2]
[391702884,1760734241056,-1799.77,0.00022902,2]
[391702886,1760734241065,-1799.77,0.00023176,2]
[391702888,1760734241074,-1799.77,0.0002345,2]
[391702890,1760734241083,-1799.77,0.00023724,2]
[391702892,1760734241092,-150.0,0.00023835,2]
[391702894,1760734241101,-5000.0,0.00023978,2]
[391702896,1760734241110,-1799.81604892,0.00023998,2]
[391702898,1760734241119,-1018.29,0.00024647,2]
[391702900,1760734241128,-451.14238015,0.000248,2]
[391702902,1760734241138,-200.0,0.00025138,2]
[391702904,1760734241148,-1000.0,0.00025476,2]
[391702907,1760734241157,-500.0,0.00025606,5]
[391702909,1760734241167,-500.0,0.0002588,5]
[391702911,1760734241176,-1000.0,0.000259,2]
[391702913,1760734241185,-500.0,0.00026154,5]
[391702914,1760734241194,-6213.152,0.00026377,13]
[391702916,1760734241204,-398.491,0.00026377,13]
[391702918,1760734241214,-500.0,0.00026428,5]
[391702920,1760734241223,-300.0,0.00026575,9]
[391702922,1760734241233,-500.0,0.00026702,5]
[391702925,1760734241242,-500.0,0.00026976,5]
[391702926,1760734241252,-500.0,0.0002725,5]
[391702929,1760734241261,-1129.045,0.00027397,2]
[391702930,1760734241272,-456.06,0.00027424,2]
[391702933,1760734241282,-451.14238015,0.000275,2]
[391702934,1760734241291,-500.0,0.00027524,10]
[391702936,1760734241301,-199.0,0.00027671,7]
[391702938,1760734241314,-500.0,0.00027798,10]
[391702940,1760734241324,-199.0,0.00027945,8]
[391702943,1760734241333,-500.0,0.00028072,10]
[391702945,1760734241343,-300.0,0.00028145,34]
[391702946,1760734241352,-199.0,0.00028219,9]
[391702948,1760734241362,-1000.0,0.00028307,2]
[391702950,1760734241371,-500.0,0.00028346,10]
[391702952,1760734241380,-878.4,0.0002843,120]
[391702954,1760734241390,-199.0,0.00028493,10]
[391702956,1760734241399,-500.0,0.0002862,10]
[391702958,1760734241408,-196.76481376,0.00028767,11]
[391702961,1760734241420,-500.0,0.00028894,10]
[391702962,1760734241430,-500.0,0.00029168,10]
[391702964,1760734241439,-450.0,0.00029315,16]
[391702966,1760734241448,-500.0,0.00029442,10]
[391702968,1760734241458,-500.0,0.00029716,10]
[391702971,1760734241467,-519.04908886,0.00029838,2]
[391702973,1760734241476,-519.04908886,0.00029845,2]
[391702975,1760734241486,-1723.57971585,0.00029865,2]
[391702977,1760734241495,-1723.57971585,0.00029894,2]
[391702979,1760734241504,-1723.57971585,0.00029902,2]
[391702981,1760734241513,-519.04908886,0.00029959,2]
[391702983,1760734241522,-519.04908886,0.00029974,2]
[391702985,1760734241531,-500.0,0.0002999,10]
[391702987,1760734241541,-1723.57971585,0.00029999,2]
[391702989,1760734241550,-2258.09,0.00030136,3]
[391702991,1760734241559,-451.14238015,0.000302,2]
[391702993,1760734241568,-161.76830817,0.0003028,2]
[391702994,1760734241577,-155.0,0.00031,120]
[391702997,1760734241587,-300.0,0.0003107,2]
[391702999,1760734241596,-1000.0,0.00031138,2]
[391703000,1760734241605,-2500.0,0.00031215,2]
[391703002,1760734241614,-878.4,0.00031273,120]
[391703004,1760734241623,-150.0,0.000313,30]
[391703006,1760734241633,-271.0,0.00031315,2]
[391703008,1760734241643,-276.67396807,0.00032004,2]
[391703010,1760734241652,-600.0,0.00032054,23]
[391703012,1760734241661,-195.0,0.000321,30]
[391703014,1760734241671,-194.0,0.000321,30]
[391703017,1760734241680,-150.0,0.00032165,2]
[391703018,1760734241689,-155.0,0.000326,120]
[391703020,1760734241699,-150.0,0.00032651,30]
[391703022,1760734241708,-641.71500974,0.00032651,30]
[391703024,1760734241717,-150.0,0.00032651,30]
[391703026,1760734241727,-513.60231123,0.00032651,30]
[391703029,1760734241736,-150.0,0.00032651,30]
[391703031,1760734241746,-4819.8802268,0.00032651,30]
[391703032,1760734241755,-3387.135,0.00032876,4]
[391703035,1760734241765,-338.56494214,0.00032877,2]
[391703036,1760734241774,-451.14238015,0.000329,2]
[391703038,1760734241783,-526.370776,0.00033,8]
[391703041,1760734241793,-500.0,0.0003325,5]
[391703042,1760734241802,-1090.0,0.0003352,5]
[391703045,1760734241813,-500.0,0.00033798,5]
[391703047,1760734241824,-1000.0,0.00033969,2]
[391703048,1760734241833,-878.4,0.00034116,120]
[391703050,1760734241843,-155.0,0.000342,120]
[391703052,1760734241852,-500.0,0.00034336,5]
[391703054,1760734241861,-500.0,0.00034336,5]
[391703056,1760734241870,-500.0,0.00034392,5]
[391703058,1760734241879,-153.0,0.00034605,2]
[391703060,1760734241888,-153.0,0.00034605,2]
[391703062,1760734241897,-153.0,0.00034605,2]
[391703064,1760734241906,-153.0,0.00034605,2]
[391703067,1760734241917,-153.0,0.00034605,2]
[391703068,1760734241926,-153.0,0.00034605,2]
[391703070,1760734241935,-153.0,0.00034605,2]
[391703072,1760734241944,-153.0,0.00034605,2]
[391703074,1760734241954,-153.0,0.00034605,2]
[391703077,1760734241963,-153.0,0.00034605,2]
[391703079,1760734241977,-153.0,0.00034605,2]
[391703080,1760734241986,-153.0,0.00034605,2]
[391703082,1760734241995,-153.0,0.00034605,2]
[391703084,1760734242004,-153.0,0.00034605,2]
[391703086,1760734242013,-153.0,0.00034605,2]
[391703088,1760734242023,-153.0,0.00034605,2]
[391703090,1760734242032,-153.0,0.00034605,2]
[391703092,1760734242041,-153.0,0.00034605,2]
[391703095,1760734242051,-153.0,0.00034605,2]
[391703097,1760734242060,-153.0,0.00034605,2]
[391703099,1760734242069,-153.0,0.00034605,2]
[391703100,1760734242078,-153.0,0.00034605,2]
[391703103,1760734242088,-153.0,0.00034605,2]
[391703105,1760734242097,-153.0,0.00034605,2]
[391703107,1760734242106,-153.0,0.00034605,2]
[391703108,1760734242116,-153.0,0.00034605,2]
[391703110,1760734242125,-153.0,0.00034605,2]
[391703112,1760734242134,-153.0,0.00034605,2]
[391703114,1760734242143,-153.0,0.00034605,2]
[391703116,1760734242152,-153.0,0.00034605,2]
[391703118,1760734242160,-153.0,0.00034605,2]
[391703120,1760734242169,-153.0,0.00034605,2]
[391703122,1760734242178,-153.0,0.00034605,2]
[391703124,1760734242187,-153.0,0.00034605,2]
[391703126,1760734242196,-153.0,0.00034605,2]
[391703128,1760734242206,-153.0,0.00034605,2]
[391703130,1760734242215,-153.0,0.00034605,2]
[391703132,1760734242224,-153.0,0.00034605,2]
[391703134,1760734242233,-153.0,0.00034605,2]
[391703136,1760734242243,-153.0,0.00034605,2]
[391703138,1760734242254,-153.0,0.00034605,2]
[391703140,1760734242263,-153.0,0.00034605,2]
[391703142,1760734242272,-153.0,0.00034605,2]
[391703144,1760734242281,-153.0,0.00034605,2]
[391703146,1760734242290,-153.0,0.00034605,2]
[391703148,1760734242299,-153.0,0.00034605,2]
[391703150,1760734242309,-153.0,0.00034605,2]
[391703152,1760734242318,-153.0,0.00034605,2]
[391703154,1760734242327,-153.0,0.00034605,2]
[391703156,1760734242336,-153.0,0.00034605,2]
[391703158,1760734242345,-153.0,0.00034605,2]
[391703160,1760734242354,-153.0,0.00034605,2]
[391703161,1760734242363,-153.0,0.00034605,2]
[391703163,1760734242372,-153.0,0.00034605,2]
[391703165,1760734242381,-153.0,0.00034605,2]
[391703167,1760734242390,-153.0,0.00034605,2]
[391703169,1760734242400,-153.0,0.00034605,2]
[391703171,1760734242409,-153.0,0.00034605,2]
[391703173,1760734242419,-153.0,0.00034605,2]
[391703175,1760734242428,-153.0,0.00034605,2]
[391703177,1760734242436,-153.0,0.00034605,2]
[391703179,1760734242446,-153.0,0.00034605,2]
[391703181,1760734242455,-153.0,0.00034605,2]
[391703183,1760734242464,-153.0,0.00034605,2]
[391703186,1760734242474,-153.0,0.00034605,2]
[391703188,1760734242482,-153.0,0.00034605,2]
[391703190,1760734242492,-153.0,0.00034605,2]
[391703191,1760734242500,-153.0,0.00034605,2]
[391703193,1760734242509,-153.0,0.00034605,2]
[391703196,1760734242519,-153.0,0.00034605,2]
[391703197,1760734242528,-153.0,0.00034605,2]
[391703199,1760734242537,-153.0,0.00034605,2]
[391703201,1760734242547,-153.0,0.00034605,2]
[391703203,1760734242556,-153.0,0.00034605,2]
[391703205,1760734242565,-153.0,0.00034605,2]
[391703207,1760734242573,-153.0,0.00034605,2]
[391703209,1760734242582,-153.0,0.00034605,2]
[391703211,1760734242592,-153.0,0.00034605,2]
[391703213,1760734242601,-153.0,0.00034605,2]
[391703215,1760734242610,-153.0,0.00034605,2]
[391703217,1760734242619,-153.0,0.00034605,2]
[391703219,1760734242628,-153.0,0.00034605,2]
[391703221,1760734242637,-153.0,0.00034605,2]
[391703223,1760734242647,-153.0,0.00034605,2]
[391703225,1760734242656,-153.0,0.00034605,2]
[391703227,1760734242665,-153.0,0.00034605,2]
[391703229,1760734242674,-153.0,0.00034605,2]
[391703231,1760734242683,-153.0,0.00034605,2]
[391703233,1760734242693,-153.0,0.00034605,2]
[391703235,1760734242702,-153.0,0.00034605,2]
[391703237,1760734242712,-153.0,0.00034605,2]
[391703239,1760734242721,-153.0,0.00034605,2]
[391703241,1760734242730,-153.0,0.00034605,2]
[391703243,1760734242739,-153.0,0.00034605,2]
[391703245,1760734242748,-153.0,0.00034605,2]
[391703247,1760734242760,-153.0,0.00034605,2]
[391703249,1760734242770,-153.0,0.00034605,2]
[391703251,1760734242779,-153.0,0.00034605,2]
[391703253,1760734242788,-500.0,0.0003477,5]
[391703255,1760734242798,-750.0,0.00034794,30]
[391703257,1760734242807,-1444.0,0.00034849,120]
[391703259,1760734242816,-1000.0,0.00034884,5]
[391703261,1760734242826,-500.0,0.00034884,5]
[391703263,1760734242835,-1000.0,0.0003494,5]
[391703265,1760734242844,-475.6557911,0.00035068,120]
[391703267,1760734242854,-160.0,0.00035068,120]
[391703269,1760734242863,-1091.0,0.00035284,5]
[391703271,1760734242872,-336.7,0.000353,60]
[391703273,1760734242881,-500.0,0.00035318,5]
[391703275,1760734242890,-1000.0,0.00035432,5]
[391703277,1760734242899,-1500.0,0.00035488,5]
[391703279,1760734242909,-451.14238015,0.000356,2]
[391703281,1760734242918,-4516.18,0.00035616,5]
[391703283,1760734242927,-155.0,0.000358,120]
[391703285,1760734242936,-500.0,0.00036036,5]
[391703287,1760734242946,-153.543573,0.00036089,17]
[391703289,1760734242955,-153.543573,0.00036336,17]
[391703291,1760734242965,-241.80872605,0.00036822,2]
[391703293,1760734242978,-500.0,0.000369,5]
[391703295,1760734242987,-500.0,0.000369,5]
[391703297,1760734242996,-500.0,0.000369,5]
[391703299,1760734243006,-500.0,0.00036999,17]
[391703301,1760734243016,-1000.0,0.00037,2]
[391703303,1760734243025,-1000.0,0.00037,2]
[391703305,1760734243034,-1000.0,0.00037,2]
[391703307,1760734243045,-1000.0,0.00037,2]
[391703309,1760734243054,-1000.0,0.00037,2]
[391703312,1760734243063,-1000.0,0.00037,2]
[391703314,1760734243072,-1000.0,0.00037,2]
[391703316,1760734243081,-1000.0,0.00037,2]
[391703318,1760734243090,-1000.0,0.00037,2]
[391703320,1760734243099,-1000.0,0.00037,2]
[391703322,1760734243108,-5633.0,0.00037,117]
[391703325,1760734243117,-1091.0,0.00037141,5]
[391703328,1760734243126,-155.0,0.000373,120]
[391703331,1760734243135,-889.11750703,0.00037448,5]
[391703334,1760734243145,-1000.0,0.00037448,5]
[391703337,1760734243154,-900.0,0.00037534,37]
[391703340,1760734243163,-500.0,0.00037619,5]
[391703343,1760734243173,-500.0,0.00037619,5]
[391703345,1760734243182,-500.0,0.00037619,5]
[391703347,1760734243192,-170.22,0.0003784,2]
[391703349,1760734243201,-1713.92,0.00037873,2]
[391703351,1760734243212,-899.0,0.00038042,20]
[391703353,1760734243221,-500.0,0.00038167,5]
[391703355,1760734243230,-500.0,0.00038167,5]
[391703357,1760734243239,-451.14238015,0.000383,2]
[391703359,1760734243248,-208.42,0.00038305,14]
[391703361,1760734243257,-500.0,0.00038356,120]
[391703363,1760734243267,-5645.225,0.00038356,6]
[391703365,1760734243276,-13485.2,0.00038356,10]
[391703367,1760734243285,-500.0,0.00038373,5]
[391703369,1760734243295,-456.06,0.00038393,2]
[391703371,1760734243304,-368.0140045,0.000384,10]
[391703373,1760734243314,-899.0,0.00038434,20]
[391703375,1760734243322,-500.0,0.0003852,5]